bitfinex/quotes_SOLUSD_20250206
["timestamp","ask_amount","ask_price","bid_price","bid_amount"]
[1738871353229,20.0,189.53,189.51,21.57415524]
[1738871353425,0.11317495,189.55,189.52,21.57415524]
[1738871353629,0.11317495,189.55,189.54,21.57415524]
[1738871354841,0.22664848,189.55,189.54,21.57415524]
[1738871356132,0.22664848,189.55,189.54,26.85005524]
[1738871356432,0.22664848,189.55,189.54,61.83605901]
[1738871356638,0.11347353,189.55,189.54,61.83605901]
[1738871357543,0.1298064,189.56,189.55,14.53733853]
[1738871357731,0.13979685,189.57,189.56,16.00764853]
[1738871357935,0.13979685,189.57,189.56,37.58180377]
[1738871358341,0.13979685,189.57,189.56,38.83278377]
[1738871358644,0.10545621,189.58,189.57,14.78831853]
[1738871358836,0.09741034,189.59,189.58,14.41184853]
[1738871359043,0.09741034,189.59,189.58,41.26080377]
[1738871359545,30.0,189.7,189.59,13.41184853]
[1738871359848,0.00918781,189.62,189.61,1.0]
[1738871360051,0.00918781,189.62,189.61,58.72739771]
[1738871360347,0.03,189.74,189.63,17.35011853]
[1738871360641,0.03,189.74,189.66,13.41184853]
[1738871360844,0.03,189.74,189.73,21.57415524]
[1738871361346,0.03,189.74,189.73,40.25660377]
[1738871363340,0.03,189.74,189.73,34.98600377]
[1738871365061,0.03,189.74,189.73,37.36247377]
[1738871365266,0.03,189.74,189.73,37.48796377]
[1738871365446,0.03,189.76,189.74,36.36247377]
[1738871365761,0.03,189.76,189.75,34.98600377]
[1738871366168,0.03,189.76,189.75,36.48796377]
[1738871366348,0.03,189.8,189.79,34.98600377]
[1738871366667,0.03,189.8,189.79,57.93662901]
[1738871366861,88.5855,189.91,189.88,21.57415524]
[1738871367057,82.1,189.91,189.88,21.57415524]
[1738871367239,82.1,189.91,189.86,19.60465524]
[1738871367443,82.1,189.91,189.86,21.57415524]
[1738871368464,23.12705524,189.94,189.87,21.57415524]
[1738871368670,23.12705524,189.94,189.88,21.57415524]
[1738871369269,0.03,189.91,189.88,21.57415524]
[1738871369570,20.03,189.91,189.85,21.57415524]
[1738871369948,20.03,189.91,189.86,21.57415524]
[1738871370160,0.03,189.91,189.9,21.57415524]
[1738871371758,0.03,189.91,189.87,21.57415524]
[1738871371956,0.03,189.91,189.85,21.57415524]
[1738871372159,0.03,189.91,189.86,21.57415524]
[1738871372358,0.03,189.91,189.89,21.57415524]
[1738871372666,0.03,189.91,189.83,1.0]
[1738871372667,0.03,189.91,189.9,21.57415524]
[1738871373548,0.03,189.91,189.9,40.25190377]
[1738871374253,0.03,189.91,189.9,34.98600377]
[1738871374456,0.03,189.91,189.9,40.25190377]
[1738871374856,0.12748627,189.91,189.9,40.25190377]
[1738871376152,0.12748627,189.91,189.9,62.99216121]
[1738871376470,0.09566987,189.93,189.92,14.91380853]
[1738871376674,0.10213277,189.95,189.92,38.27738407]
[1738871376972,0.03779308,189.98,189.97,34.98600377]
[1738871377557,0.03779308,189.98,189.97,40.24990377]
[1738871378376,0.03779308,189.98,189.96,21.57415524]
[1738871378562,0.03779308,189.98,189.95,21.57415524]
[1738871378763,0.03779308,189.98,189.97,21.57415524]
[1738871379554,0.03779308,189.98,189.97,26.83805524]
[1738871379958,0.03779308,189.98,189.97,21.57415524]
[1738871380162,0.03779308,189.98,189.96,21.57415524]
[1738871380383,0.03779308,189.98,189.97,21.57415524]
[1738871380774,0.06779308,189.98,189.97,21.57415524]
[1738871381371,0.11021349,190.0,189.97,21.57415524]
[1738871381688,0.11021349,190.0,189.99,21.57415524]
[1738871381891,0.11021349,190.0,189.99,56.56015901]
[1738871382225,0.03,190.04,189.99,56.56015901]
[1738871382226,0.03,190.04,190.0,13.41184853]
[1738871382365,0.03,190.04,190.03,21.57415524]
[1738871382685,0.03,190.04,190.03,36.48796377]
[1738871382994,0.03,190.04,190.03,38.27693965]
[1738871383465,21.57415524,190.17,190.06,0.12549]
[1738871383670,28.17955524,190.15,190.08,21.57415524]
[1738871384057,6.6054,190.15,190.1,21.57415524]
[1738871384678,6.6054,190.15,190.07,5.2611]
[1738871384679,6.6054,190.15,190.09,21.57415524]
[1738871385194,21.57415524,190.13,190.06,21.57415524]
[1738871385402,21.57415524,190.12,190.06,21.57415524]
[1738871385562,21.57415524,190.12,190.04,5.262]
[1738871385563,21.57415524,190.11,190.04,21.57415524]
[1738871385763,21.57415524,190.13,190.06,21.57415524]
[1738871385980,41.57415524,190.12,190.05,21.57415524]
[1738871386386,20.0,190.12,190.06,21.57415524]
[1738871386677,41.57415524,190.12,190.05,21.57415524]
[1738871391120,20.0,190.12,190.06,21.57415524]
[1738871392027,21.57415524,190.09,190.02,21.57415524]
[1738871392186,21.57415524,190.09,189.99,21.57415524]
[1738871392187,21.57415524,190.05,189.99,21.57415524]
[1738871392385,6.6446,190.05,189.99,21.57415524]
[1738871392602,28.21875524,190.05,189.98,21.57415524]
[1738871393212,7.8085,190.09,190.02,21.57415524]
[1738871393511,7.8085,190.09,190.04,21.57415524]
[1738871393697,20.03,190.12,190.07,21.57415524]
[1738871393893,20.03,190.12,190.08,21.57415524]
[1738871394085,20.03,190.12,190.09,21.57415524]
[1738871394289,20.03,190.12,190.07,21.57415524]
[1738871394519,20.03,190.12,190.06,21.57415524]
[1738871394703,20.03,190.12,190.07,21.57415524]
[1738871394893,20.03,190.12,190.04,5.2619]
[1738871394894,0.09665879,190.09,190.08,21.57415524]
[1738871395819,0.09665879,190.09,190.08,26.83505524]
[1738871396589,0.09665879,190.09,190.08,21.57415524]
[1738871397587,0.09665879,190.09,190.08,26.96054524]
[1738871398217,0.09665879,190.09,190.08,5.2609]
[1738871398599,21.57415524,190.15,190.08,26.83505524]
[1738871398814,21.57415524,190.14,190.07,21.57415524]
[1738871399003,41.57415524,190.14,190.07,21.57415524]
[1738871399199,21.57415524,190.11,190.04,26.83615524]
[1738871399616,21.57415524,190.07,190.0,21.57415524]
[1738871399927,21.57415524,190.02,189.96,5.2642]
[1738871400096,30.0,190.06,189.94,26.83865524]
[1738871400295,21.57415524,190.0,189.94,5.2645]
[1738871400713,21.57415524,189.96,189.91,5.2656]
[1738871400920,21.57415524,189.96,189.9,5.2659]
[1738871401356,21.57415524,189.95,189.9,5.2659]
[1738871401644,21.57415524,189.96,189.9,5.2659]
[1738871401954,21.57415524,189.98,189.9,26.84005524]
[1738871402246,6.0334,190.05,189.97,21.57415524]
[1738871402454,6.0334,190.05,190.0,21.57415524]
[1738871402749,82.1,190.04,189.91,1.78930992]
[1738871402952,82.1,190.04,189.92,0.50196]
[1738871403118,82.1,190.04,189.92,13.91380853]
[1738871403452,20.0,190.01,189.91,0.78949878]
[1738871403749,20.0,190.01,189.94,0.37647]
[1738871403921,21.57415524,190.03,189.96,21.57415524]
[1738871404118,103.67415524,190.04,189.97,21.57415524]
[1738871404449,6.0334,190.05,190.0,21.57415524]
[1738871404654,6.0334,190.05,189.99,21.57415524]
[1738871404947,21.57415524,190.02,189.95,21.57415524]
[1738871405359,21.57415524,190.02,189.94,0.37647]
[1738871405532,27.60755524,190.05,189.95,0.12549]
[1738871405719,31.5042,190.09,189.98,5.2637]
[1738871405720,1.5042,190.09,189.98,5.2637]
[1738871406060,21.57415524,190.07,190.0,21.57415524]
[1738871406552,23.07835524,190.09,190.02,21.57415524]
[1738871406714,1.5042,190.09,190.05,21.57415524]
[1738871406921,0.03,190.12,190.06,21.57415524]
[1738871407620,0.03,190.12,190.08,21.57415524]
[1738871407829,0.03,190.12,190.11,21.57415524]
[1738871408046,0.03,190.12,190.1,21.57415524]
[1738871408339,0.03,190.12,190.05,5.63807]
[1738871408553,0.03,190.12,190.07,21.57415524]
[1738871409122,0.03,190.12,190.08,21.57415524]
[1738871409431,0.03,190.12,190.1,21.57415524]
[1738871409954,0.03,190.12,190.09,21.57415524]
[1738871410123,0.03,190.12,190.08,21.57415524]
[1738871410442,21.60415524,190.12,190.05,26.83585524]
[1738871410648,21.60415524,190.12,190.06,0.12549]
[1738871411051,0.03,190.12,190.06,21.69964524]
[1738871411344,0.03,190.12,190.09,21.57415524]
[1738871411545,0.03,190.12,190.07,0.78894322]
[1738871411546,0.03,190.12,190.11,21.57415524]
[1738871411843,0.03,190.12,190.1,21.57415524]
[1738871412429,0.03,190.12,190.1,26.83445524]
[1738871412628,0.03,190.12,190.1,21.57415524]
[1738871412831,0.03,190.12,190.09,5.2606]
[1738871413426,21.57415524,190.11,190.05,5.2615]
[1738871413745,0.03,190.12,190.06,21.69964524]
[1738871413953,0.03,190.12,190.07,5.2612]
[1738871414434,0.03,190.12,190.07,26.83535524]
[1738871414832,0.10761005,190.09,190.08,21.57415524]
[1738871415031,0.10761005,190.09,190.08,22.73950559]
[1738871415232,0.10761005,190.09,190.07,26.83535524]
[1738871415554,0.10761005,190.09,190.08,21.57415524]
[1738871415755,0.10761005,190.09,190.07,5.2612]
[1738871415756,0.10761005,190.09,190.04,21.57415524]
[1738871415932,0.10761005,190.09,190.02,6.05166681]
[1738871416137,21.68176529,190.09,190.02,21.57415524]
[1738871416326,21.57415524,190.06,189.99,26.83735524]
[1738871416526,21.57415524,190.05,189.98,26.83755524]
[1738871416839,30.10761005,190.09,189.98,26.83755524]
[1738871416840,21.57415524,190.06,189.98,26.83755524]
[1738871417237,21.57415524,190.05,189.98,21.57415524]
[1738871417445,21.57415524,190.02,189.95,21.57415524]
[1738871417861,21.57415524,189.99,189.92,21.57415524]
[1738871418152,21.57415524,189.99,189.91,26.83975524]
[1738871418533,21.57415524,189.98,189.91,5.2656]
[1738871418762,21.57415524,189.96,189.9,0.063]
[1738871419330,21.57415524,189.95,189.9,0.063]
[1738871419541,6.5521,189.98,189.9,0.063]
[1738871419542,21.57415524,189.96,189.9,0.063]
[1738871419740,21.57415524,189.97,189.9,5.3289]
[1738871419932,28.12625524,189.98,189.9,26.90305524]
[1738871420138,21.57415524,189.97,189.9,26.90305524]
[1738871420924,6.5521,189.98,189.9,26.90305524]
[1738871420925,21.57415524,189.95,189.9,0.063]
[1738871421154,28.12625524,189.98,189.9,21.63715524]
[1738871421332,21.57415524,189.97,189.9,26.90295524]
[1738871421858,21.57415524,190.0,189.92,21.57415524]
[1738871422151,29.49405524,190.04,189.97,21.57415524]
[1738871422353,21.57415524,190.08,189.96,1.37647]
[1738871422549,6.17271005,190.09,190.02,21.57415524]
[1738871423132,0.10761005,190.09,190.04,21.57415524]
[1738871423328,0.10761005,190.09,190.03,21.57415524]
[1738871423642,0.10761005,190.09,190.04,21.57415524]
[1738871424155,0.10761005,190.09,190.03,21.57415524]
[1738871424362,21.68176529,190.09,190.01,26.83695524]
[1738871424563,21.68176529,190.09,190.02,21.57415524]
[1738871424869,21.68176529,190.09,190.03,21.57415524]
[1738871424870,0.10761005,190.09,190.03,21.57415524]
[1738871425035,0.10761005,190.09,190.06,21.57415524]
[1738871425240,0.10761005,190.09,190.07,21.57415524]
[1738871425634,0.10761005,190.09,190.08,21.57415524]
[1738871426239,0.10761005,190.09,190.07,21.57415524]
[1738871426661,0.10761005,190.09,190.06,26.83545524]
[1738871426847,0.10761005,190.09,190.06,5.2613]
[1738871427864,0.10761005,190.09,190.02,14.3263707]
[1738871427865,0.10761005,190.09,190.02,21.57415524]
[1738871428047,0.10761005,190.09,190.03,21.57415524]
[1738871428248,0.10761005,190.09,190.03,21.63715524]
[1738871428650,0.13761005,190.09,190.03,21.63715524]
[1738871428856,0.13761005,190.09,190.04,21.57415524]
[1738871429049,0.13761005,190.09,190.06,21.57415524]
[1738871429356,0.13761005,190.09,190.05,21.57415524]
[1738871430162,0.13761005,190.09,190.05,26.83585524]
[1738871430361,0.13761005,190.09,190.05,5.2617]
[1738871430657,0.13761005,190.09,190.03,21.63715524]
[1738871430841,0.13761005,190.09,190.04,21.57415524]
[1738871431044,0.13761005,190.09,190.06,21.57415524]
[1738871431244,0.13761005,190.09,190.08,21.95062524]
[1738871431652,0.13761005,190.09,190.08,21.57415524]
[1738871431841,0.13761005,190.09,190.07,22.36313664]
[1738871432041,0.13761005,190.09,190.05,21.57415524]
[1738871432237,0.13761005,190.09,190.04,5.262]
[1738871432465,0.13761005,190.09,190.03,5.3253]
[1738871433360,0.13761005,190.09,190.04,21.57415524]
[1738871433558,0.13761005,190.09,190.04,26.83605524]
[1738871434259,0.13761005,190.09,190.03,0.063]
[1738871434463,21.57415524,190.07,190.03,0.063]
[1738871434853,0.10718681,190.04,190.03,0.063]
[1738871435165,21.68134205,190.04,190.03,0.063]
[1738871438078,51.68134205,190.04,190.03,0.063]
[1738871438478,68.10066058,190.04,190.03,0.063]
[1738871439187,21.57415524,189.96,189.9,0.063]
[1738871439471,21.57415524,189.95,189.9,0.063]
[1738871439846,21.57415524,189.93,189.9,0.063]
[1738871440045,21.57415524,189.92,189.9,0.063]
[1738871440550,21.57415524,189.93,189.9,0.063]
[1738871442464,21.57415524,189.92,189.9,0.063]
[1738871442853,21.57415524,189.95,189.9,0.063]
[1738871443163,41.57415524,189.94,189.9,0.063]
[1738871443968,20.0,189.94,189.9,0.063]
[1738871445474,41.57415524,189.94,189.9,0.063]
[1738871446084,20.0,189.94,189.9,0.063]
[1738871446283,41.57415524,189.94,189.9,0.063]
[1738871447175,21.57415524,189.93,189.9,0.063]
[1738871447367,20.0,189.94,189.9,0.063]
[1738871447971,21.57415524,189.93,189.9,0.063]
[1738871448179,21.57415524,189.92,189.9,0.063]
[1738871448366,21.57415524,189.91,189.9,0.063]
[1738871449495,89.56942901,189.91,189.9,0.063]
[1738871449664,51.57415524,189.91,189.9,0.063]
[1738871449991,21.57415524,189.91,189.9,0.063]
[1738871450901,24.20695524,189.91,189.9,0.063]
[1738871451063,59.19295901,189.91,189.9,0.063]
[1738871451259,37.61880377,189.91,189.9,0.063]
[1738871451478,59.56942901,189.91,189.9,0.063]
[1738871451854,30.0,189.87,189.86,0.063]
[1738871452071,51.57415524,189.87,189.86,0.063]
[1738871453484,64.98600377,189.87,189.86,0.063]
[1738871453685,67.99577377,189.87,189.86,0.063]
[1738871453984,68.99577377,189.87,189.86,0.063]
[1738871454158,86.94877377,189.85,189.84,0.063]
[1738871454353,87.94877377,189.85,189.84,0.063]
[1738871454785,86.94877377,189.85,189.84,0.063]
[1738871455080,43.27248294,189.85,189.84,0.063]
[1738871455464,41.68618294,189.85,189.84,0.063]
[1738871457312,0.1120277,189.85,189.84,0.063]
[1738871458373,0.1120277,189.85,189.84,21.63715524]
[1738871458677,0.1120277,189.85,189.84,0.063]
[1738871461302,21.71280011,189.85,189.84,0.063]
[1738871461967,37.75824864,189.85,189.84,0.063]
[1738871462407,38.13471864,189.85,189.84,0.063]
[1738871463888,39.13471864,189.85,189.84,0.063]
[1738871464593,40.13471864,189.85,189.84,0.063]
[1738871464896,20.0,189.74,189.71,0.063]
[1738871465085,21.60077241,189.72,189.71,0.063]
[1738871465909,51.60077241,189.72,189.71,0.063]
[1738871466082,21.60077241,189.72,189.71,0.063]
[1738871466480,51.60077241,189.72,189.71,0.063]
[1738871466781,21.60077241,189.72,189.71,0.063]
[1738871467089,51.60077241,189.72,189.71,0.063]
[1738871467391,21.60077241,189.72,189.71,0.063]
[1738871467599,51.60077241,189.72,189.71,0.063]
[1738871468487,89.62526335,189.72,189.71,0.063]
[1738871468697,90.62526335,189.72,189.71,0.063]
[1738871468879,91.62526335,189.72,189.71,0.063]
[1738871469084,30.0,189.68,189.67,0.063]
[1738871469396,147.48909094,189.68,189.67,0.063]
[1738871469993,150.12509094,189.68,189.67,0.063]
[1738871470201,152.12509094,189.68,189.67,0.063]
[1738871470406,30.0,189.62,189.54,0.063]
[1738871470575,21.60077241,189.6,189.54,0.063]
[1738871470777,21.60077241,189.58,189.54,0.063]
[1738871471500,41.60077241,189.59,189.54,0.063]
[1738871471681,20.0,189.59,189.54,0.063]
[1738871471872,21.60077241,189.6,189.54,0.063]
[1738871472077,21.60077241,189.58,189.54,0.063]
[1738871472481,21.60077241,189.55,189.54,0.063]
[1738871472681,21.60077241,189.56,189.54,0.063]
[1738871473403,21.60077241,189.58,189.54,0.063]
[1738871473696,21.60077241,189.59,189.54,0.063]
[1738871473888,21.60077241,189.58,189.54,0.063]
[1738871474083,21.60077241,189.6,189.54,0.063]
[1738871474285,21.60077241,189.61,189.54,21.66377241]
[1738871474893,0.10771722,189.55,189.54,0.063]
[1738871476330,21.70848963,189.55,189.54,0.063]
[1738871476495,0.10771722,189.55,189.54,0.063]
[1738871479303,41.70848963,189.55,189.54,0.063]
[1738871480012,20.10771722,189.55,189.54,0.063]
[1738871481137,0.10771722,189.55,189.54,0.063]
[1738871483010,21.70848963,189.55,189.54,0.063]
[1738871483523,0.10771722,189.55,189.54,0.063]
[1738871484031,21.70848963,189.55,189.54,0.063]
[1738871484417,51.70848963,189.55,189.54,0.063]
[1738871484815,43.66131377,189.55,189.54,0.063]
[1738871486911,57.0731623,189.55,189.54,0.063]
[1738871487114,73.51553885,189.55,189.54,0.063]
[1738871487401,19.91411459,189.55,189.54,0.063]
[1738871487622,0.10771722,189.55,189.54,0.063]
[1738871488230,0.10771722,189.55,189.54,13.74208655]
[1738871488724,0.10771722,189.55,189.54,21.84770912]
[1738871488923,0.10771722,189.55,189.54,27.12360912]
[1738871489126,0.10771722,189.55,189.54,49.03380824]
[1738871489420,0.11087279,189.56,189.55,14.91380853]
[1738871489618,7.279e-05,189.56,189.55,36.36398731]
[1738871489810,7.279e-05,189.56,189.55,22.82664878]
[1738871490011,7.279e-05,189.56,189.55,22.03568912]
[1738871490718,7.279e-05,189.56,189.55,35.57302765]
[1738871490917,7.279e-05,189.56,189.55,36.57302765]
[1738871491145,8.119e-05,189.57,189.56,0.37647]
[1738871491335,8.119e-05,189.57,189.56,29.3090594]
[1738871491537,0.10833311,189.59,189.58,20.50196]
[1738871491772,7.578e-05,189.6,189.59,13.78831853]
[1738871491978,7.578e-05,189.6,189.59,35.44753765]
[1738871492269,7.578e-05,189.6,189.59,21.78470912]
[1738871492768,7.578e-05,189.6,189.56,6.4825]
[1738871493264,7.578e-05,189.6,189.54,21.72221912]
[1738871493473,21.65921912,189.59,189.54,5.3388]
[1738871493633,21.65921912,189.59,189.54,0.063]
[1738871494034,21.6592949,189.6,189.54,0.063]
[1738871494253,7.578e-05,189.6,189.55,21.65921912]
[1738871494457,7.578e-05,189.6,189.56,21.65921912]
[1738871494876,0.1103753,189.57,189.56,21.65921912]
[1738871495361,0.1103753,189.57,189.56,40.84832765]
[1738871495751,0.1103753,189.57,189.56,26.93451912]
[1738871495947,0.1103753,189.57,189.56,27.72556913]
[1738871496151,0.1103753,189.57,189.56,41.63937766]
[1738871496859,0.1103753,189.57,189.56,40.84832765]
[1738871497251,5.088e-05,189.58,189.57,0.25098]
[1738871497465,5.088e-05,189.58,189.57,23.70102901]
[1738871497765,2.826e-05,189.59,189.58,1.50196]
[1738871497953,7.805e-05,189.6,189.59,13.91380853]
[1738871498144,7.805e-05,189.6,189.59,36.36379029]
[1738871498538,0.09543283,189.61,189.6,0.37647]
[1738871498539,1.088e-05,189.61,189.6,0.37647]
[1738871498769,1.088e-05,189.61,189.6,29.28948912]
[1738871499372,1.088e-05,189.61,189.6,34.56368912]
[1738871499661,1.088e-05,189.61,189.6,33.56368912]
[1738871499843,1.088e-05,189.61,189.6,33.31270912]
[1738871500239,1.088e-05,189.61,189.6,46.85004765]
[1738871500863,1.088e-05,189.61,189.6,48.44236438]
[1738871502173,8.944e-05,189.62,189.61,13.66282853]
[1738871502469,2.791e-05,189.66,189.65,1.25098]
[1738871502674,2.791e-05,189.67,189.66,0.37647]
[1738871502966,2.791e-05,189.67,189.66,22.03568912]
[1738871503340,2.791e-05,189.67,189.66,37.57302765]
[1738871503545,1.6588,189.8,189.7,0.12549]
[1738871503742,1.6588,189.8,189.74,21.65921912]
[1738871503937,1.6588,189.8,189.74,26.92931912]
[1738871504253,21.65921912,189.84,189.77,21.65921912]
[1738871504465,0.03,189.86,189.8,21.65921912]
[1738871504648,21.68921912,189.86,189.79,21.65921912]
[1738871505073,0.03,189.86,189.8,21.65921912]
[1738871505549,21.68921912,189.86,189.79,21.65921912]
[1738871506058,21.65921912,189.84,189.77,21.65921912]
[1738871506257,21.65921912,189.83,189.76,21.65921912]
[1738871506563,41.68921912,189.84,189.77,21.65921912]
[1738871507256,21.65921912,189.83,189.76,21.65921912]
[1738871507449,21.65921912,189.8,189.73,26.92961912]
[1738871507650,21.65921912,189.78,189.71,26.93021912]
[1738871507840,30.0,189.83,189.7,26.93051912]
[1738871507841,21.65921912,189.77,189.7,26.93051912]
[1738871508046,0.03,189.84,189.73,21.65921912]
[1738871508258,21.65921912,189.83,189.72,0.25098]
[1738871508459,21.65921912,189.83,189.76,21.65921912]
[1738871509064,21.65921912,189.81,189.74,21.65921912]
[1738871509246,0.03,189.84,189.73,21.65921912]
[1738871509247,21.65921912,189.8,189.73,21.65921912]
[1738871509441,21.65921912,189.77,189.7,21.65921912]
[1738871509649,21.65921912,189.74,189.67,21.65921912]
[1738871509889,31.5175,189.79,189.67,21.65921912]
[1738871509890,21.65921912,189.75,189.67,21.65921912]
[1738871510175,21.65921912,189.75,189.68,21.65921912]
[1738871510381,21.65921912,189.75,189.68,26.93111912]
[1738871511057,34.152,189.79,189.66,26.93151912]
[1738871511058,21.65921912,189.73,189.66,26.93151912]
[1738871512276,21.65921912,189.71,189.63,21.65921912]
[1738871512778,21.65921912,189.72,189.65,21.65921912]
[1738871513790,30.0,189.75,189.62,5.2737]
[1738871513791,21.65921912,189.71,189.64,21.65921912]
[1738871514289,21.65921912,189.72,189.64,21.65921912]
[1738871514867,0.10378681,189.65,189.64,21.65921912]
[1738871515274,0.10378681,189.65,189.64,26.93221912]
[1738871515858,0.10378681,189.65,189.63,26.93261912]
[1738871516767,0.10378681,189.65,189.64,21.65921912]
[1738871517766,0.10378681,189.65,189.64,26.93231912]
[1738871518173,0.10378681,189.65,189.64,21.65921912]
[1738871518384,0.10378681,189.65,189.63,26.93251912]
[1738871519089,0.10378681,189.65,189.64,21.65921912]
[1738871519474,0.10378681,189.65,189.63,26.93251912]
[1738871519991,0.10378681,189.65,189.64,21.65921912]
[1738871520678,0.10378681,189.65,189.63,26.93251912]
[1738871521675,0.10378681,189.65,189.64,21.72221912]
[1738871521874,0.10378681,189.65,189.64,26.99531912]
[1738871522077,0.10378681,189.65,189.64,27.12080912]
[1738871522264,8.681e-05,189.65,189.64,28.28791364]
[1738871522468,7.499e-05,189.66,189.65,13.91380853]
[1738871522708,5.496e-05,189.67,189.66,7.58727]
[1738871522881,0.10871684,189.68,189.66,7.58727]
[1738871522882,7.18e-05,189.68,189.67,0.25098]
[1738871523196,0.10180831,189.69,189.68,0.37647]
[1738871523386,0.10180831,189.69,189.68,21.65921912]
[1738871524007,0.10180831,189.69,189.68,26.93121912]
[1738871524504,0.10180831,189.69,189.68,27.43317912]
[1738871525508,8.121e-05,189.71,189.7,1.50196]
[1738871525673,1.203e-05,189.73,189.72,4.01376]
[1738871525998,1.203e-05,189.73,189.72,53.39329186]
[1738871526209,9.152e-05,189.74,189.73,36.32204765]
[1738871526791,0.03,189.84,189.77,0.12549]
[1738871526990,0.03,189.84,189.82,21.65921912]
[1738871528023,0.03,189.84,189.83,21.65921912]
[1738871528386,0.03,189.84,189.83,26.92701912]
[1738871529794,0.03,189.84,189.82,26.92731912]
[1738871530092,0.03,189.84,189.79,26.92811912]
[1738871530297,0.03,189.84,189.8,0.79014171]
[1738871530606,0.03,189.84,189.83,21.65921912]
[1738871530788,0.03,189.84,189.79,5.2689]
[1738871530988,0.03,189.84,189.77,6.97888243]
[1738871530989,0.03,189.84,189.78,5.2692]
[1738871531316,0.03,189.84,189.8,0.12549]
[1738871531996,0.03,189.84,189.81,5.2684]
[1738871532497,21.68921912,189.84,189.78,5.2692]
[1738871533113,0.03,189.84,189.79,21.78470912]
[1738871533307,0.03,189.84,189.78,5.2692]
[1738871533512,0.03,189.84,189.8,21.65921912]
[1738871533932,0.03,189.84,189.8,26.92761912]
[1738871534305,0.03,189.84,189.78,21.65921912]
[1738871534616,0.03,189.84,189.74,13.41184853]
[1738871534617,21.65921912,189.8,189.74,5.2701]
[1738871534995,21.65921912,189.8,189.71,0.79018311]
[1738871534996,21.75682174,189.79,189.72,21.65921912]
[1738871535394,21.65921912,189.78,189.71,27.05590912]
[1738871535624,21.65921912,189.77,189.71,5.39669]
[1738871535942,21.65921912,189.78,189.71,27.05590912]
[1738871536096,21.65921912,189.77,189.71,5.39669]
[1738871536505,0.09760262,189.79,189.73,21.65921912]
[1738871536798,0.09760262,189.79,189.74,21.65921912]
[1738871537304,0.09760262,189.79,189.76,21.65921912]
[1738871537627,0.09760262,189.79,189.74,21.65921912]
[1738871537929,0.09760262,189.79,189.75,21.65921912]
[1738871538096,0.09760262,189.79,189.76,5.2698]
[1738871538529,0.09760262,189.79,189.78,21.65921912]
[1738871538714,0.09760262,189.79,189.78,21.91019912]
[1738871538917,2.62e-06,189.79,189.78,35.57302765]
[1738871539107,5.93e-05,189.8,189.79,13.66282853]
[1738871539310,5.93e-05,189.8,189.79,37.11195942]
[1738871540220,5.93e-05,189.8,189.79,42.38085942]
[1738871540912,5.93e-05,189.8,189.79,27.96901089]
[1738871541119,5.93e-05,189.8,189.79,26.92811912]
[1738871541631,5.93e-05,189.8,189.79,27.17909912]
[1738871542431,5.93e-05,189.8,189.79,27.43007912]
[1738871542625,5.93e-05,189.8,189.79,41.63190388]
[1738871542827,5.93e-05,189.8,189.79,42.63190388]
[1738871544035,0.0300593,189.8,189.79,28.22005535]
[1738871544234,0.0300593,189.8,189.79,27.05360912]
[1738871544429,0.0300593,189.8,189.77,26.92841912]
[1738871544731,0.0300593,189.8,189.79,21.65921912]
[1738871544907,0.0300593,189.8,189.78,21.65921912]
[1738871545102,0.0300593,189.8,189.77,5.2692]
[1738871546837,0.0300593,189.8,189.77,26.92841912]
[1738871547209,0.0300593,189.8,189.78,21.78470912]
[1738871547414,0.0300593,189.8,189.79,22.70028702]
[1738871547719,5.93e-05,189.8,189.79,36.36311555]
[1738871547924,3.496e-05,189.81,189.8,13.66282853]
[1738871548148,3.496e-05,189.81,189.8,35.32204765]
[1738871548356,9.95e-06,189.82,189.81,13.91380853]
[1738871548671,27.85161912,189.96,189.81,13.91380853]
[1738871548672,1.259e-05,189.86,189.85,5.39279]
[1738871548859,1.259e-05,189.86,189.85,26.92651912]
[1738871550269,1.259e-05,189.86,189.83,21.65921912]
[1738871550435,1.259e-05,189.86,189.84,21.65921912]
[1738871550747,1.259e-05,189.86,189.83,21.65921912]
[1738871551363,1.259e-05,189.86,189.84,21.65921912]
[1738871551985,1.259e-05,189.86,189.83,21.65921912]
[1738871552168,1.259e-05,189.86,189.83,26.92681912]
[1738871552354,1.259e-05,189.86,189.84,21.65921912]
[1738871552563,1.259e-05,189.86,189.85,21.78470912]
[1738871552780,1.259e-05,189.86,189.85,22.95099115]
[1738871553184,1.259e-05,189.86,189.85,36.36283968]
[1738871554045,1.259e-05,189.86,189.85,41.63013968]